[Event "Djerba Festival Open-B 2025"]
[Site "Djerba"]
[Date "2025.02.18"]
[Round "4.9"]
[White "Cherad, Mohammed"]
[Black "Minde, Baptiste"]
[Result "1-0"]
[Annotator "NA"]
[ECO "C06"]
[WhiteElo "1768"]
[BlackElo "1896"]
[PlyCount "73"]
[EventDate "2025.02.15"]
[EventType "swiss"]
[EventCountry "TUN"]
[SourceTitle "playchess.com"]
[Source "ChessBase"]
[SourceQuality "1"]
[TimeControl "5400+30"]

1. e4 {[%emt 1:31:00]} e6 {[%emt 1:31:00]} 2. d4 {[%emt 0:00:30]} d5 {[%emt 0:00:30]} 3. Nd2 {[%emt 0:00:30]} Nf6 {[%emt 0:00:30]} 4. e5 {[%emt 0:00:30]} Nfd7 {[%emt 0:00:30]} 5. Bd3 {[%emt 0:00:30]} c5 {[%emt 0:00:30]} 6. c3 {[%emt 0:00:30]} Nc6 {[%emt 0:00:30]} 7. Ne2 {[%emt 0:00:30]} cxd4 {[%emt 0:00:30]} 8. cxd4 {[%emt 0:00:30]} f6 {[%emt 0:00:30]} 9. exf6 {[%emt 0:00:30]} Nxf6 {[%emt 0:00:30]} 10. O-O {[%emt 0:00:30]} Bd6 {[%emt 0:00:30]} 11. Nf3 {[%emt 0:00:30]} O-O {[%emt 0:00:30]} 12. Ng3 {[%emt 0:00:30]} Bd7 {[%emt 0:00:30]} 13. Bg5 {[%emt 0:00:30]} Qc7 {[%emt 0:00:30]} 14. Rc1 {[%emt 0:00:30]} Rae8 {[%emt 0:00:30]} 15. Re1 {[%emt 0:00:30]} e5 {[%emt 0:00:30]} 16. dxe5 {[%emt 0:00:30]} Bxe5 {[%emt 0:00:30]} 17. Qb3 {[%emt 0:00:30]} Qd6 {[%emt 0:00:30]} 18. Bxf6 {[%emt 0:00:30]} Bxf6 {[%emt 0:00:30]} 19. Ne4 {[%emt 0:00:30]} Qf4 {[%emt 0:00:30]} 20. Nxf6+ {[%emt 0:00:30]} Qxf6 {[%emt 0:00:30]} 21. Qxd5+ {[%emt 0:00:30]} Be6 {[%emt 0:00:30]} 22. Rxe6 {[%emt 0:00:30]} Rxe6 {[%emt 0:00:30]} 23. Bc4 {[%emt 0:00:30]} Nd8 {[%emt 0:00:30]} 24. Re1 {[%emt 0:00:30]} Kh8 {[%emt 0:00:30]} 25. Rxe6 {[%emt 0:00:30]} Nxe6 {[%emt 0:00:30]} 26. Qxe6 {[%emt 0:00:30]} Qxb2 {[%emt 0:00:30]} 27. Qe7 {[%emt 0:00:30]} Qb1+ {[%emt 0:00:30]} 28. Bf1 {[%emt 0:00:30]} Rc8 {[%emt 0:00:30]} 29. Qe6 {[%emt 0:00:30]} Rf8 {[%emt 0:00:30]} 30. h4 {[%emt 0:00:30]} h6 {[%emt 0:00:30]} 31. Ne5 {[%emt 0:00:30]} Rf6 {[%emt 0:00:30]} 32. Qe8+ {[%emt 0:00:30]} Kh7 {[%emt 0:00:30]} 33. h5 {[%emt 0:00:30]} Qe1 {[%emt 0:00:30]} 34. f3 {[%emt 0:00:30]} Qa1 {[%emt 0:00:30]} 35. Ng6 {[%emt 0:00:30]} Qd4+ {[%emt 0:00:30]} 36. Kh1 {[%emt 0:00:30]} Qh4+ {[%emt 0:00:30]} 37. Nxh4 {[%emt 0:00:30]} 1-0

[Event "Djerba Festival Open-B 2025"]
[Site "Djerba"]
[Date "2025.02.18"]
[Round "4.10"]
[White "Mendili, Jahed"]
[Black "Schmittheisler, Guillaume"]
[Result "0-1"]
[Annotator "NA"]
[ECO "C02"]
[WhiteElo "1771"]
[BlackElo "1888"]
[PlyCount "48"]
[EventDate "2025.02.15"]
[EventType "swiss"]
[EventCountry "TUN"]
[SourceTitle "playchess.com"]
[Source "ChessBase"]
[SourceQuality "1"]
[TimeControl "5400+30"]

1. e4 {[%emt 0:01:22]} e6 {[%emt 0:00:20]} 2. d4 {[%emt 0:01:02]} d5 {[%emt 0:00:18]} 3. e5 {[%emt 0:00:05]} c5 {[%emt 0:00:11]} 4. c3 {[%emt 0:00:04]} Nc6 {[%emt 0:00:13]} 5. Nf3 {[%emt 0:00:04]} Bd7 {[%emt 0:00:46]} 6. a3 {[%emt 0:00:13]} f6 {[%emt 0:00:57]} 7. Bf4 {[%emt 0:03:21]} fxe5 {[%emt 0:10:26]} 8. Nxe5 {[%emt 0:00:09]} Nxe5 {[%emt 0:00:15]} 9. Bxe5 {[%emt 0:00:05]} Nf6 {[%emt 0:00:31]} 10. Bd3 {[%emt 0:01:33]} c4 {[%emt 0:02:45]} 11. Bc2 {[%emt 0:01:26]} Qb6 {[%emt 0:06:33]} 12. Ra2 {[%emt 0:16:32]} Bd6 {[%emt 0:06:25]} 13. O-O {[%emt 0:08:55]} O-O {[%emt 0:11:46]} 14. Nd2 {[%emt 0:01:47]} Be8 {[%emt 0:15:23]} 15. f4 {[%emt 0:08:22]} Bh5 {[%emt 0:07:36]} 16. Qe1 {[%emt 0:02:31]} Bxe5 {[%emt 0:03:30]} 17. fxe5 {[%emt 0:00:24]} Ng4 {[%emt 0:02:10]} 18. Qh4 {[%emt 0:04:44]} Ne3 {[%emt 0:02:46]} 19. Bxh7+ {[%emt 0:02:23]} Kxh7 {[%emt 0:00:18]} 20. Qxh5+ {[%emt 0:00:08]} Kg8 {[%emt 0:00:09]} 21. Rxf8+ {[%emt 0:02:26]} Rxf8 {[%emt 0:00:03]} 22. g4 {[%emt 0:02:03]} Qb3 {[%emt 0:00:48]} 23. Ra1 {[%emt 0:11:32]} Qxb2 {[%emt 0:00:50]} 24. Rb1 {[%emt 0:03:03]} Qxb1+ {[%emt 0:00:23]} 0-1

[Event "Djerba Festival Open-B 2025"]
[Site "Djerba"]
[Date "2025.02.18"]
[Round "4.11"]
[White "Baba, Mouadh"]
[Black "Cornileau, Raphael"]
[Result "0-1"]
[Annotator "NA"]
[ECO "C45"]
[WhiteElo "1688"]
[BlackElo "1864"]
[PlyCount "92"]
[EventDate "2025.02.15"]
[EventType "swiss"]
[EventCountry "TUN"]
[SourceTitle "playchess.com"]
[Source "ChessBase"]
[SourceQuality "1"]
[TimeControl "5400+30"]

1. e4 {[%emt 0:00:02]} e5 {[%emt 0:00:07]} 2. Nf3 {[%emt 0:00:13]} Nc6 {[%emt 0:00:04]} 3. d4 {[%emt 0:00:09]} exd4 {[%emt 0:00:05]} 4. Nxd4 {[%emt 0:00:16]} Nf6 {[%emt 0:00:41]} 5. Nxc6 {[%emt 0:00:58]} bxc6 {[%emt 0:00:04]} 6. Bd3 {[%emt 0:00:07]} d5 {[%emt 0:00:51]} 7. exd5 {[%emt 0:00:07]} cxd5 {[%emt 0:00:05]} 8. O-O {[%emt 0:00:11]} Be7 {[%emt 0:01:01]} 9. c4 {[%emt 0:00:58]} d4 {[%emt 0:02:21]} 10. b4 {[%emt 0:11:31]} O-O {[%emt 0:00:38]} 11. a3 {[%emt 0:10:43]} Bb7 {[%emt 0:01:25]} 12. Nd2 {[%emt 0:10:04]} a5 {[%emt 0:03:13]} 13. b5 {[%emt 0:02:04]} Nd7 {[%emt 0:05:35]} 14. Nb3 {[%emt 0:03:28]} Bf6 {[%emt 0:00:52]} 15. Bb2 {[%emt 0:02:20]} Nb6 {[%emt 0:01:36]} 16. Nxd4 {[%emt 0:01:11]} g6 {[%emt 0:03:53]} 17. Be2 {[%emt 0:02:56]} Qd6 {[%emt 0:00:33]} 18. Qc2 {[%emt 0:13:29]} Bxd4 {[%emt 0:04:13]} 19. Rad1 {[%emt 0:00:20]} Bxf2+ {[%emt 0:00:48]} 20. Rxf2 {[%emt 0:00:17]} Qe6 {[%emt 0:00:03]} 21. Kh1 {[%emt 0:07:55]} f6 {[%emt 0:01:13]} 22. Rdf1 {[%emt 0:08:34]} Nd7 {[%emt 0:00:53]} 23. c5 {[%emt 0:06:44]} Bd5 {[%emt 0:00:47]} 24. Rf4 {[%emt 0:10:11]} Ne5 {[%emt 0:02:11]} 25. Bd3 {[%emt 0:02:50]} Rad8 {[%emt 0:06:42]} 26. Be4 {[%emt 0:01:20]} Bc4 {[%emt 0:00:55]} 27. Rc1 {[%emt 0:01:41]} Bxb5 {[%emt 0:01:10]} 28. a4 {[%emt 0:00:29]} Bd3 {[%emt 0:00:55]} 29. Bxd3 {[%emt 0:00:24]} Nxd3 {[%emt 0:00:08]} 30. Qd2 {[%emt 0:01:46]} Nxf4 {[%emt 0:01:47]} 31. Qxf4 {[%emt 0:00:06]} Qe2 {[%emt 0:00:12]} 32. Bd4 {[%emt 0:01:31]} g5 {[%emt 0:00:58]} 33. Qe3 {[%emt 0:00:58]} Qxe3 {[%emt 0:00:04]} 34. Bxe3 {[%emt 0:00:09]} Rd3 {[%emt 0:00:06]} 35. Bf2 {[%emt 0:00:28]} Ra3 {[%emt 0:00:18]} 36. Bg3 {[%emt 0:00:32]} Rf7 {[%emt 0:00:25]} 37. h3 {[%emt 0:01:04]} Rxa4 {[%emt 0:00:04]} 38. c6 {[%emt 0:00:41]} Rd4 {[%emt 0:01:17]} 39. Rb1 {[%emt 0:00:29]} Rc4 {[%emt 0:01:11]} 40. Ra1 {[%emt 0:00:40]} a4 {[%emt 0:00:08]} 41. Ra3 {[%emt 0:00:13]} Re7 {[%emt 0:00:25]} 42. Kh2 {[%emt 0:00:07]} h5 {[%emt 0:00:18]} 43. Kg1 {[%emt 0:00:31]} h4 {[%emt 0:00:24]} 44. Bh2 {[%emt 0:00:06]} f5 {[%emt 0:00:58]} 45. g3 {[%emt 0:00:20]} Rc1+ {[%emt 0:00:09]} 46. Kf2 {[%emt 0:00:48]} Rc2+ {[%emt 1:01:44]} 0-1

[Event "Djerba Festival Open-B 2025"]
[Site "Djerba"]
[Date "2025.02.18"]
[Round "4.12"]
[White "Bensaid, Brahim"]
[Black "Bensadi, Lotfi"]
[Result "0-1"]
[Annotator "NA"]
[ECO "B92"]
[WhiteElo "1743"]
[BlackElo "1971"]
[PlyCount "80"]
[EventDate "2025.02.15"]
[EventType "swiss"]
[EventCountry "TUN"]
[SourceTitle "playchess.com"]
[Source "ChessBase"]
[SourceQuality "1"]
[TimeControl "5400+30"]

1. e4 {[%emt 0:09:54]} c5 {[%emt 0:00:05]} 2. Nf3 {[%emt 0:00:07]} d6 {[%emt 0:00:07]} 3. d4 {[%emt 0:00:09]} cxd4 {[%emt 0:00:07]} 4. Nxd4 {[%emt 0:00:07]} Nf6 {[%emt 0:00:07]} 5. Nc3 {[%emt 0:00:01]} a6 {[%emt 0:00:05]} 6. Be2 {[%emt 0:00:48]} e5 {[%emt 0:00:43]} 7. Nf3 {[%emt 0:00:13]} Be7 {[%emt 0:00:09]} 8. O-O {[%emt 0:00:21]} O-O {[%emt 0:00:28]} 9. h3 {[%emt 0:00:07]} Nbd7 {[%emt 0:01:00]} 10. Be3 {[%emt 0:00:59]} b5 {[%emt 0:00:06]} 11. a3 {[%emt 0:00:50]} Bb7 {[%emt 0:00:06]} 12. Nd2 {[%emt 0:00:59]} Nc5 {[%emt 0:00:50]} 13. f3 {[%emt 0:00:21]} d5 {[%emt 0:02:21]} 14. exd5 {[%emt 0:00:22]} Nxd5 {[%emt 0:00:10]} 15. Nxd5 {[%emt 0:00:22]} Bxd5 {[%emt 0:00:22]} 16. b4 {[%emt 0:01:05]} Na4 {[%emt 0:01:36]} 17. Bd3 {[%emt 0:04:38]} f5 {[%emt 0:02:08]} 18. Qe1 {[%emt 0:05:45]} Nb2 {[%emt 0:01:47]} 19. Qe2 {[%emt 0:05:06]} Rc8 {[%emt 0:03:11]} 20. Rac1 {[%emt 0:01:37]} Bc4 {[%emt 0:09:15]} 21. Bxc4+ {[%emt 0:05:22]} Nxc4 {[%emt 0:02:33]} 22. Nxc4 {[%emt 0:00:18]} Rxc4 {[%emt 0:00:15]} 23. Rfd1 {[%emt 0:04:48]} Qc7 {[%emt 0:07:05]} 24. Rd3 {[%emt 0:07:19]} Rc8 {[%emt 0:02:34]} 25. Qd2 {[%emt 0:04:36]} Rxc2 {[%emt 0:04:42]} 26. Rxc2 {[%emt 0:00:11]} Qxc2 {[%emt 0:00:09]} 27. Qxc2 {[%emt 0:01:20]} Rxc2 {[%emt 0:00:09]} 28. Kf1 {[%emt 0:05:04]} Kf7 {[%emt 0:03:37]} 29. Bd2 {[%emt 0:08:45]} Ke6 {[%emt 0:01:18]} 30. Ke2 {[%emt 0:00:30]} Bg5 {[%emt 0:00:27]} 31. Kd1 {[%emt 0:00:53]} Rxd2+ {[%emt 0:00:27]} 32. Rxd2 {[%emt 0:00:25]} Bxd2 {[%emt 0:00:01]} 33. Kxd2 {[%emt 0:00:03]} f4 {[%emt 0:01:27]} 34. Kc3 {[%emt 0:01:32]} Kd5 {[%emt 0:00:13]} 35. Kb3 {[%emt 0:00:53]} g5 {[%emt 0:00:40]} 36. Kc3 {[%emt 0:01:25]} e4 {[%emt 0:00:08]} 37. Kd2 {[%emt 0:00:41]} exf3 {[%emt 0:01:22]} 38. gxf3 {[%emt 0:00:01]} Kd4 {[%emt 0:00:09]} 39. Ke2 {[%emt 0:00:14]} Kc3 {[%emt 0:00:06]} 40. Kf2 {[%emt 0:00:29]} Kd2 {[%emt 0:00:23]} 0-1

[Event "Djerba Festival Open-B 2025"]
[Site "Djerba"]
[Date "2025.02.18"]
[Round "4.13"]
[White "Belhaj, Nadhem"]
[Black "Cornette, Francois"]
[Result "1/2-1/2"]
[Annotator "ChessBase"]
[ECO "A90"]
[WhiteElo "1960"]
[BlackElo "1680"]
[PlyCount "58"]
[EventDate "2025.02.15"]
[EventType "swiss"]
[EventCountry "TUN"]
[SourceTitle "playchess.com"]
[Source "ChessBase"]
[SourceQuality "1"]
[TimeControl "5400+30"]

1. Nf3 {[%emt 0:00:06]} d5 {[%emt 0:00:09]} 2. c4 {[%emt 0:00:07]} e6 {[%emt 0:00:37]} 3. g3 {[%emt 0:00:12]} c6 {[%emt 0:00:34]} 4. Bg2 {[%emt 0:01:49]} f5 {[%emt 0:01:02]} 5. O-O {[%emt 0:01:24]} Nf6 {[%emt 0:00:10]} 6. b3 {[%emt 0:01:07]} Bd6 {[%emt 0:01:54]} 7. Bb2 {[%emt 0:00:42]} Qe7 {[%emt 0:00:23]} 8. d4 {[%emt 0:05:24]} O-O {[%emt 0:01:42]} 9. Qc1 {[%emt 0:02:10]} Nbd7 {[%emt 0:00:45]} 10. Ba3 {[%emt 0:00:50]} c5 {[%emt 0:02:38]} 11. cxd5 {[%emt 0:06:44]} exd5 {[%emt 0:01:13]} 12. Nc3 {[%emt 0:02:33]} b6 {[%emt 0:01:55]} 13. Nb5 {[%emt 0:05:05]} Bb8 {[%emt 0:00:24]} 14. dxc5 {[%emt 0:02:25]} Nxc5 {[%emt 0:02:24]} 15. Nbd4 {[%emt 0:01:14]} Bd7 {[%emt 0:03:45]} 16. Rd1 {[%emt 0:02:26]} Bd6 {[%emt 0:07:29]} 17. Qb2 {[%emt 0:02:30]} Rac8 {[%emt 0:02:47]} 18. Rac1 {[%emt 0:04:53]} Rfe8 {[%emt 0:01:43]} 19. Qb1 {[%emt 0:02:31]} Nce4 {[%emt 0:00:25]} 20. Bxd6 {[%emt 0:01:35]} Qxd6 {[%emt 0:00:37]} 21. Qb2 {[%emt 0:04:51]} f4 {[%emt 0:02:46]} 22. Nd2 {[%emt 0:03:06]} Nxf2 {[%emt 0:12:12]} 23. Kxf2 {[%emt 0:02:02]} fxg3+ {[%emt 0:00:14]} 24. Kg1 {[%emt 0:46:44]} Qe5 {[%emt 0:54:42]} 25. h3 {[%emt 0:00:00]} Qe3+ {[%emt 0:00:00]} 26. Kh1 {[%emt 0:00:00]} Ng4 {[%emt 0:00:00]} 27. hxg4 {[%emt 0:00:00]} Qh6+ {[%emt 0:00:00]} 28. Kg1 {[%emt 0:00:00]} Qe3+ {[%emt 0:00:00]} 29. Kh1 {[%emt 0:00:00]} Qh6+ {[%emt 0:00:00]} 1/2-1/2

[Event "Djerba Festival Open-B 2025"]
[Site "Djerba"]
[Date "2025.02.18"]
[Round "4.14"]
[White "Marceil, Jean"]
[Black "Ben Othman, Zahreddine"]
[Result "1-0"]
[Annotator "ChessBase"]
[ECO "A52"]
[WhiteElo "1901"]
[BlackElo "1718"]
[PlyCount "101"]
[EventDate "2025.02.15"]
[EventType "swiss"]
[EventCountry "TUN"]
[SourceTitle "playchess.com"]
[Source "ChessBase"]
[SourceQuality "1"]
[TimeControl "5400+30"]

1. d4 {[%emt 0:00:11]} Nf6 {[%emt 0:00:08]} 2. c4 {[%emt 0:00:05]} e5 {[%emt 0:00:07]} 3. dxe5 {[%emt 0:00:13]} Ng4 {[%emt 0:00:09]} 4. e4 {[%emt 0:00:34]} Nxe5 {[%emt 0:00:11]} 5. f4 {[%emt 0:00:29]} Nec6 {[%emt 0:00:06]} 6. Be3 {[%emt 0:00:07]} Bb4+ {[%emt 0:00:38]} 7. Nc3 {[%emt 0:00:40]} Qh4+ {[%emt 0:00:16]} 8. g3 {[%emt 0:00:18]} Qe7 {[%emt 0:00:06]} 9. Bd3 {[%emt 0:00:44]} Bxc3+ {[%emt 0:00:10]} 10. bxc3 {[%emt 0:00:08]} Na6 {[%emt 0:00:41]} 11. Qh5 {[%emt 0:33:09]} d6 {[%emt 0:12:37]} 12. Nf3 {[%emt 0:01:40]} g6 {[%emt 0:18:15]} 13. Qg5 {[%emt 0:06:52]} f6 {[%emt 0:01:27]} 14. Qb5 {[%emt 0:00:17]} Nc5 {[%emt 0:04:21]} 15. Bxc5 {[%emt 0:01:43]} dxc5 {[%emt 0:00:12]} 16. O-O {[%emt 0:03:30]} O-O {[%emt 0:02:06]} 17. Rae1 {[%emt 0:08:36]} a6 {[%emt 0:04:13]} 18. Qa4 {[%emt 0:00:29]} Bd7 {[%emt 0:09:39]} 19. Qc2 {[%emt 0:01:19]} Bg4 {[%emt 0:05:26]} 20. Nh4 {[%emt 0:09:27]} Rae8 {[%emt 0:10:42]} 21. Ng2 {[%emt 0:05:16]} Bh3 {[%emt 0:01:05]} 22. Rf2 {[%emt 0:00:11]} Bxg2 {[%emt 0:00:53]} 23. Kxg2 {[%emt 0:00:07]} g5 {[%emt 0:07:03]} 24. Qe2 {[%emt 0:04:28]} Rf7 {[%emt 0:00:42]} 25. Qh5 {[%emt 0:04:54]} Qd7 {[%emt 0:07:51]} 26. Bc2 {[%emt 0:00:15]} gxf4 {[%emt 0:01:27]} 27. gxf4 {[%emt 0:00:16]} Rg7+ {[%emt 0:01:16]} 28. Kf3 Rf8 {[%emt 0:06:14]} 29. Rd1 {[%emt 0:02:09]} Qe6 {[%emt 0:02:25]} 30. Qd5 {[%emt 0:00:18]} Nd8 {[%emt 0:01:28]} 31. Rdd2 {[%emt 0:01:56]} Kh8 {[%emt 0:00:09]} 32. Qxe6 {[%emt 0:09:57]} Nxe6 {[%emt 0:00:03]} 33. Rg2 {[%emt 0:00:52]} Rfg8 {[%emt 0:00:23]} 34. Rxg7 {[%emt 0:00:39]} Rxg7 {[%emt 0:00:17]} 35. Ba4 {[%emt 0:06:11]} Re7 {[%emt 0:00:21]} 36. Bd7 {[%emt 0:00:00]} Nf8 {[%emt 0:00:13]} 37. Bf5 {[%emt 0:00:00]} Kg7 {[%emt 0:00:23]} 38. Rd5 {[%emt 0:00:00]} b6 {[%emt 0:00:09]} 39. h4 {[%emt 0:00:00]} Kh6 {[%emt 0:01:32]} 40. e5 {[%emt 0:00:00]} fxe5 {[%emt 0:00:16]} 41. fxe5 {[%emt 0:00:00]} Ng6 {[%emt 0:00:16]} 42. Bxg6 {[%emt 0:00:21]} Kxg6 {[%emt 0:00:26]} 43. Ke4 {[%emt 0:00:18]} Kf7 {[%emt 0:04:09]} 44. Kf5 {[%emt 0:00:15]} a5 {[%emt 0:00:51]} 45. Rd8 {[%emt 0:01:48]} Re6 {[%emt 0:01:00]} 46. Rd7+ {[%emt 0:00:24]} Re7 {[%emt 0:00:02]} 47. e6+ {[%emt 0:00:32]} Ke8 {[%emt 0:00:36]} 48. Rxe7+ {[%emt 0:00:18]} Kxe7 {[%emt 0:00:08]} 49. h5 {[%emt 0:00:21]} c6 {[%emt 0:00:09]} 50. a4 {[%emt 0:00:36]} h6 {[%emt 0:02:13]} 51. Ke4 {[%emt 0:03:07]} 1-0

[Event "Djerba Festival Open-B 2025"]
[Site "Djerba"]
[Date "2025.02.18"]
[Round "4.15"]
[White "Ajbara Jamal"]
[Black "Kolodner, Garry"]
[Result "1-0"]
[Annotator "NA"]
[ECO "E93"]
[WhiteElo "1898"]
[BlackElo "1697"]
[PlyCount "91"]
[EventDate "2025.02.15"]
[EventType "swiss"]
[EventCountry "TUN"]
[SourceTitle "playchess.com"]
[Source "ChessBase"]
[SourceQuality "1"]
[TimeControl "5400+30"]

1. d4 g6 2. c4 Bg7 3. Nc3 d6 4. e4 Nf6 5. Bg5 O-O 6. Be2 Nbd7 7. Nf3 e5 8. d5 a5 9. a3 h6 10. Bh4 g5 11. Bg3 Nc5 12. Nd2 a4 13. h4 g4 14. h5 Nh7 15. Nf1 {[%emt 1:38:00]} f5 {[%emt 1:38:00]} 16. exf5 {[%emt 0:00:30]} Bxf5 {[%emt 0:00:30]} 17. Ne3 {[%emt 0:00:30]} Nb3 {[%emt 0:00:30]} 18. Nxf5 {[%emt 0:00:30]} Rxf5 {[%emt 0:00:30]} 19. Bxg4 {[%emt 0:00:30]} Rf8 {[%emt 0:00:30]} 20. Rb1 {[%emt 0:00:30]} Qg5 {[%emt 0:00:30]} 21. Ne4 {[%emt 0:00:30]} Qe7 {[%emt 0:00:30]} 22. Bh4 {[%emt 0:00:30]} Qe8 {[%emt 0:00:30]} 23. O-O {[%emt 0:00:30]} Rf4 {[%emt 0:00:30]} 24. Re1 {[%emt 0:00:30]} Rf8 {[%emt 0:00:30]} 25. Rf1 Rf4 26. Re1 Nf6 {[%emt 0:01:00]} 27. Bxf6 {[%emt 0:01:30]} Bxf6 {[%emt 0:00:30]} 28. g3 {[%emt 0:00:30]} Rxe4 {[%emt 0:00:30]} 29. Rxe4 {[%emt 0:00:30]} Nc5 {[%emt 0:00:30]} 30. Re3 {[%emt 0:00:30]} b5 {[%emt 0:00:30]} 31. cxb5 {[%emt 0:00:30]} Qxb5 {[%emt 0:00:30]} 32. Bf5 {[%emt 0:00:30]} Bg5 {[%emt 0:00:30]} 33. Qg4 {[%emt 0:00:30]} Kh8 {[%emt 0:00:30]} 34. f4 {[%emt 0:00:30]} exf4 {[%emt 0:00:30]} 35. gxf4 {[%emt 0:00:30]} Rg8 {[%emt 0:00:30]} 36. Rg3 {[%emt 0:00:30]} Qb6 {[%emt 0:00:30]} 37. Kh2 {[%emt 0:00:30]} Qa5 {[%emt 0:00:30]} 38. Rd1 {[%emt 0:00:30]} Qb5 {[%emt 0:00:30]} 39. Rd2 {[%emt 0:00:30]} Qf1 {[%emt 0:00:30]} 40. fxg5 {[%emt 0:00:30]} Rxg5 {[%emt 0:00:30]} 41. Qd4+ {[%emt 0:00:30]} Kg8 {[%emt 0:00:30]} 42. Rxg5+ {[%emt 0:00:30]} hxg5 {[%emt 0:00:30]} 43. Be6+ {[%emt 0:00:30]} Kh7 {[%emt 0:00:30]} 44. Rf2 {[%emt 0:00:30]} Qe1 {[%emt 0:00:30]} 45. Rf7+ {[%emt 0:00:30]} Kh6 {[%emt 0:00:30]} 46. Qh8# {[%emt 0:00:30]} 1-0

[Event "Djerba Festival Open-B 2025"]
[Site "Djerba"]
[Date "2025.02.18"]
[Round "4.16"]
[White "Farouz, Pierre"]
[Black "Tahir, Abderrahmane"]
[Result "0-1"]
[Annotator "NA"]
[ECO "A45"]
[WhiteElo "1717"]
[BlackElo "1891"]
[PlyCount "60"]
[EventDate "2025.02.15"]
[EventType "swiss"]
[EventCountry "TUN"]
[SourceTitle "playchess.com"]
[Source "ChessBase"]
[SourceQuality "1"]
[TimeControl "5400+30"]

1. d4 {[%emt 0:00:30]} Nf6 {[%emt 0:06:04]} 2. Nc3 {[%emt 0:00:16]} g6 {[%emt 0:00:32]} 3. Bf4 {[%emt 0:00:31]} d6 {[%emt 0:00:40]} 4. e3 {[%emt 0:00:24]} Bg7 {[%emt 0:00:10]} 5. h4 {[%emt 0:04:50]} h5 {[%emt 0:03:32]} 6. Be2 {[%emt 0:08:06]} Nbd7 {[%emt 0:04:42]} 7. Nf3 {[%emt 0:00:13]} c6 {[%emt 0:01:09]} 8. Qd2 {[%emt 0:01:58]} Qa5 {[%emt 0:02:19]} 9. Ne4 {[%emt 0:03:52]} Qb6 {[%emt 0:03:15]} 10. Nxf6+ {[%emt 0:00:41]} Nxf6 {[%emt 0:00:09]} 11. c3 {[%emt 0:06:03]} Bg4 {[%emt 0:04:36]} 12. Ng5 {[%emt 0:07:48]} Bxe2 {[%emt 0:06:18]} 13. Qxe2 {[%emt 0:00:53]} Nd5 {[%emt 0:00:03]} 14. Bg3 {[%emt 0:04:31]} e5 {[%emt 0:00:30]} 15. O-O {[%emt 0:06:48]} O-O {[%emt 0:15:39]} 16. c4 {[%emt 0:13:23]} Ne7 {[%emt 0:09:21]} 17. c5 {[%emt 0:01:39]} dxc5 {[%emt 0:04:17]} 18. dxe5 {[%emt 0:00:07]} Nf5 {[%emt 0:02:25]} 19. Qf3 {[%emt 0:02:54]} Rae8 {[%emt 0:01:12]} 20. e6 {[%emt 0:07:56]} fxe6 {[%emt 0:01:35]} 21. Qe4 {[%emt 0:03:50]} Qb4 {[%emt 0:00:19]} 22. Qc2 {[%emt 0:02:07]} Nxg3 {[%emt 0:06:40]} 23. Qxg6 {[%emt 0:01:48]} Ne2+ {[%emt 0:00:22]} 24. Kh1 {[%emt 0:01:27]} Qxh4+ {[%emt 0:01:07]} 25. Nh3 {[%emt 0:00:02]} Qg4 {[%emt 0:06:50]} 26. Ng5 {[%emt 0:01:04]} Qh4+ {[%emt 0:00:00]} 27. Nh3 {[%emt 0:00:00]} Qg4 {[%emt 0:01:00]} 28. Ng5 {[%emt 0:01:00]} Qf5 {[%emt 0:06:13]} 29. Qxh5 {[%emt 0:04:34]} Bf6 {[%emt 0:14:01]} 30. f4 {[%emt 0:00:40]} Ng3+ {[%emt 0:00:00]} 0-1

[Event "Djerba Festival Open-B 2025"]
[Site "Djerba"]
[Date "2025.02.18"]
[Round "4.17"]
[White "Chargui, Saleh"]
[Black "Minde, Timothe"]
[Result "0-1"]
[Annotator "NA"]
[ECO "E41"]
[WhiteElo "1709"]
[BlackElo "1879"]
[PlyCount "50"]
[EventDate "2025.02.15"]
[EventType "swiss"]
[EventCountry "TUN"]
[SourceTitle "playchess.com"]
[Source "ChessBase"]
[SourceQuality "1"]
[TimeControl "5400+30"]

1. d4 {[%emt 0:00:01]} Nf6 {[%emt 0:00:19]} 2. c4 {[%emt 0:00:04]} e6 {[%emt 0:03:02]} 3. Nf3 {[%emt 0:00:52]} Bb4+ {[%emt 0:05:05]} 4. Nc3 {[%emt 0:00:56]} c5 {[%emt 0:00:05]} 5. Bd2 {[%emt 0:02:01]} Nc6 {[%emt 0:00:25]} 6. e3 {[%emt 0:01:06]} O-O {[%emt 0:00:56]} 7. a3 {[%emt 0:00:39]} Bxc3 {[%emt 0:02:42]} 8. Bxc3 {[%emt 0:01:50]} Ne4 {[%emt 0:00:14]} 9. Bd3 {[%emt 0:00:38]} Nxc3 {[%emt 0:00:25]} 10. bxc3 {[%emt 0:00:03]} d6 {[%emt 0:00:30]} 11. O-O {[%emt 0:00:29]} e5 {[%emt 0:00:22]} 12. d5 {[%emt 0:01:42]} Ne7 {[%emt 0:01:16]} 13. e4 {[%emt 0:01:34]} h6 {[%emt 0:03:08]} 14. h3 {[%emt 0:00:28]} f5 {[%emt 0:00:43]} 15. exf5 {[%emt 0:00:46]} Bxf5 {[%emt 0:02:45]} 16. Qc2 {[%emt 0:04:09]} Bxh3 {[%emt 0:04:44]} 17. Nh4 {[%emt 0:04:12]} Rf4 {[%emt 0:06:41]} 18. Bh7+ {[%emt 0:07:48]} Kh8 {[%emt 0:00:23]} 19. Ng6+ {[%emt 0:03:16]} Nxg6 {[%emt 0:00:10]} 20. Bxg6 {[%emt 0:00:44]} Bxg2 {[%emt 0:00:34]} 21. f3 {[%emt 0:06:20]} Bxf3 {[%emt 0:00:36]} 22. Rf2 {[%emt 0:05:35]} Qh4 {[%emt 0:01:02]} 23. Rxf3 {[%emt 0:04:22]} Rxf3 {[%emt 0:00:17]} 24. Be4 {[%emt 0:00:41]} Qg4+ {[%emt 0:00:28]} 25. Qg2 {[%emt 0:03:05]} Rg3 {[%emt 0:00:20]} 0-1